Cogmind - Beta 11 @@@ ROGUE MODE // 2022.04.06 @ 23:31:47 Player: the cat Result: Destroyed by G-73 Enforcer with Heavy Laser Performance ------------- Evolutions (9) 4500 Regions Visited (31) 6200 Robots Destroyed (277) 1385 Value Destroyed (16789) 16789 Prototype IDs (42) 840 Alien Tech Used (1) 200 Bonus (12546) 12546 TOTAL SCORE: 42460 Bonus ------- High Alert Combat Kills 2542 Follower Combat Kills 5225 Entered Garrisons 1800 Used RIF Installer 4000 Aligned with FarCom 300 Friendly Fire -1321 Cogmind --------- Core Integrity 0/1600 Matter 197/300 Energy 95/100 System Corruption 23% Temperature Cool (9) Movement Core (50) Location -1/Access Parts ------- > --- POWER (1) -------- (None) > --- PROPULSION (6) --- (None) > --- UTILITY (16) ----- Advanced Coolant Injector Enhanced Optical Array > --- WEAPON (2) ------- (None) > --- INVENTORY (5) ---- Quantum Reactor Enhanced Nova Cannon Heavy Shock Bomb Launcher Advanced Remote Datajack Peak State ------------ > --- POWER ------------ Reinforced Antimatter Reactor > --- PROPULSION ------- Armored Heavy Treads Biometal Leg Centrium Leg Centrium Leg Centrium Leg > --- UTILITY ---------- Advanced Coolant Injector Medium Storage Unit Enhanced Optical Array Advanced Targeting Computer Advanced Transmission Jammer Improved Medium Armor Plating Advanced Force Field Relay Coupler [NC] Relay Coupler [Swarmer] Relay Coupler [Brawler] Relay Coupler [Duelist] Relay Coupler [Sentry] Relay Coupler [Sentry] Relay Coupler [Demolisher] Relay Coupler [Hunter] Relay Coupler [Hunter] > --- WEAPON ----------- Enhanced Nova Cannon Advanced Remote Datajack > --- INVENTORY -------- Particle Reactor Compact Matter Pod Relay Coupler [NC] Relay Coupler [Swarmer] Relay Coupler [Sentry] Enhanced Quantum Rifle Enhanced Quantum Rifle Heavy Shock Bomb Launcher Advanced Remote Datajack Powered Hammer [Rating: 148] Favorites ----------- Power Light Nuclear Core Engine Improved Ion Engine Power Core Light Nuclear Core Reactor Reinforced Antimatter Reactor Propulsion Centrium Leg Treads Light Treads Leg Centrium Leg Wheel Wheel Hover Unit Gravmag Array Flight Unit Cooled Nuclear Pulse Thruster Utility Advanced Targeting Computer Device Disposable Heat Sink Storage Medium Storage Unit Processor Advanced Targeting Computer Hackware Relay Coupler [Sentry] Protection Improved Light Armor Plating Weapon Heavy Assault Rifle Energy Gun AWS/Thermal Energy Cannon Enhanced Nova Cannon Ballistic Gun Heavy Assault Rifle Ballistic Cannon Gauss Cannon Launcher Mini Grenade Launcher Special Weapon Advanced Remote Datajack Impact Weapon Power Maul Special Melee Weapon Improved Datajack Build | -11 -10 -10 -9 -9 -9 -8 -8 -8 -8 -7 -7 -7 -7 -6 -6 -5 -5 -5 -5 -4 -4 -4 -4 -3 -3 -3 -2 -2 -2 -2 -1 ------- Run | Scr Mat Min Mat Min Exi Min Mat Gar Mat Fac Gar Fac Gar Fac Gar Fac Was Fac Gar Fac Was Fac Gar Res Qua Gar Res Gar Res Gar Acc Slots Evolved 18 | . . . 2 . . . 2 . . 2 . . . 2 . 2 . . . 2 . . . 2 . . 2 . . . 2 Power . | . . . . . . . . . . . . . . . . . . . . . . . . . . . . . . . . Propulsion 4 | . . . . . . . . . . . . . . . . 2 . . . . . . . . . . 2 . . . . Utility 14 | . . . 2 . . . 2 . . 2 . . . 2 . . . . . 2 . . . 2 . . . . . . 2 Weapon . | . . . . . . . . . . . . . . . . . . . . . . . . . . . . . . . . Parts Attached 582 | 5 8 . 21 2 2 4 21 22 18 17 38 32 46 47 19 15 1 9 16 34 2 13 12 20 7 6 18 31 5 39 52 Power 33 | 1 1 . 3 . . 1 2 2 2 1 4 1 3 1 . 1 . 1 . . . . 1 1 . . 1 1 . 1 4 Engine 6 | 1 1 . 3 . . . . . . . 1 . . . . . . . . . . . . . . . . . . . . Core 20 | . . . . . . 1 2 2 2 1 3 1 3 1 . 1 . 1 . . . . 1 . . . . . . . 1 Reactor 7 | . . . . . . . . . . . . . . . . . . . . . . . . 1 . . 1 1 . 1 3 Propulsion 106 | 2 1 . 3 . 1 2 5 1 4 2 3 4 6 3 3 4 . 1 3 6 . 2 1 6 2 . 7 9 4 8 13 Treads 31 | 1 1 . 2 . 1 1 4 1 3 . 1 1 2 3 1 1 . . . . . . . . . . 2 1 . 1 4 Leg 29 | . . . . . . . . . . . . . . . . . . . . . . . . . . . 3 8 4 7 7 Wheel 19 | 1 . . 1 . . 1 1 . 1 2 2 3 4 . 2 . . . 1 . . . . . . . . . . . . Hover 18 | . . . . . . . . . . . . . . . . 1 . 1 2 6 . 2 1 4 1 . . . . . . Flight 9 | . . . . . . . . . . . . . . . . 2 . . . . . . . 2 1 . 2 . . . 2 Utility 233 | 1 3 . 10 . . 1 7 5 4 7 16 14 17 24 6 5 1 5 9 15 1 2 6 9 2 3 8 15 1 20 16 Device 60 | . 1 . 9 . . . . 1 . 2 . 4 4 4 . 2 . 1 . 7 1 1 2 3 2 . 4 . . 5 7 Storage 16 | 1 1 . . . . . 1 1 . 1 . 1 . . . . 1 1 . 1 . . . 1 . . 2 1 . . 3 Processor 11 | . . . . . . 1 . . 1 1 . . . 1 . 1 . 2 . 1 . . 1 . . . 1 . . . 1 Hackware 96 | . . . 1 . . . 1 3 1 1 10 6 10 8 4 1 . . 8 4 . 1 2 4 . 3 . 12 1 12 3 Protection 50 | . 1 . . . . . 5 . 2 2 6 3 3 11 2 1 . 1 1 2 . . 1 1 . . 1 2 . 3 2 Artifact . | . . . . . . . . . . . . . . . . . . . . . . . . . . . . . . . . Weapon 210 | 1 3 . 5 2 1 . 7 14 8 7 15 13 20 19 10 5 . 2 4 13 1 9 4 4 3 3 2 6 . 10 19 Energy Gun 12 | 1 . . . . 1 . . 2 . 1 . . . . . . . . . . . . . . . . . . . 3 4 Energy Cannon 20 | . . . 3 . . . 2 2 . . . . 1 1 . . . . . . . . . . 2 1 . 2 . 1 5 Ballistic Gun 53 | . 2 . 2 1 . . 4 6 5 4 3 6 5 8 . . . 2 1 2 . . . 2 . . . . . . . Ballistic Cannon 36 | . 1 . . . . . . . . . 2 2 . . 8 2 . . 1 8 . 7 1 1 1 . . 1 . 1 . Launcher 28 | . . . . 1 . . 1 4 2 . 1 1 4 3 . . . . 1 1 . . . . . 2 . . . 1 6 Special Weapon 40 | . . . . . . . . . . 1 1 . 5 7 2 3 . . 1 2 1 2 3 . . . 1 3 . 4 4 Impact Weapon 10 | . . . . . . . . . . 1 3 . 5 . . . . . . . . . . . . . 1 . . . . Slashing Weapon . | . . . . . . . . . . . . . . . . . . . . . . . . . . . . . . . . Piercing Weapon . | . . . . . . . . . . . . . . . . . . . . . . . . . . . . . . . . Special Melee Weapon 11 | . . . . . . . . . 1 . 5 4 . . . . . . . . . . . 1 . . . . . . . Unidentified Prototypes 10 | . . . 3 . . . 1 . . . . . . . . . . 1 . . 1 2 . 1 . . . . 1 . . Corrupted Parts 8 | . . . . . . . . . . . . . 2 . . . . . 1 . . . 1 1 . . . 2 . . 1 System Corruption 53 | . . . . . . . . . . . . . 11 . . . . . 2 . . . 4 6 . . . 20 . . 10 Parts Lost 153 | . . . 5 . . . 9 4 4 1 10 6 6 19 1 2 . . . 2 . 1 11 16 5 1 4 2 . 11 33 Power 16 | . . . 2 . . . 2 1 . . 2 1 . 2 . . . . . . . . 2 1 . . . . . . 3 Propulsion 32 | . . . . . . . 2 . 2 . 2 1 2 2 . 2 . . . . . . 3 3 . 1 1 . . 1 10 Utility 75 | . . . 1 . . . 2 3 1 . 4 2 3 10 1 . . . . 2 . 1 4 10 5 . 3 1 . 7 15 Weapon 30 | . . . 2 . . . 3 . 1 1 2 2 1 5 . . . . . . . . 2 2 . . . 1 . 3 5 Highest Loss Streak 15 | . . . 1 . . . 4 4 3 1 4 2 4 8 1 2 . . . 1 . 1 10 15 5 1 4 1 . 6 14 To Critical Strikes 2 | . . . . . . . . . . . . . . . . . . . . . . . 1 . . . . . . . 1 Average Slot Usage (%) 90 | . 91 100 99 100 98 87 90 98 99 99 92 98 93 91 47 67 82 85 91 93 85 93 92 79 60 33 61 93 94 88 83 Engine 2 | . 14 14 10 11 11 7 . . . . . . . . . 1 5 2 . . . . . . . . . . . . . Core 3 | . . . . . . 3 7 9 9 7 5 6 6 5 . 1 . 2 5 5 5 5 4 . . . . . . . . Treads 4 | . 14 14 11 11 11 11 12 9 11 1 2 2 . . 3 5 . . . . . . . . . . 5 4 . 1 3 Leg 4 | . . . . . . . . . . . . . . . . . . . . . . . . . . . 9 20 25 22 14 Wheel 6 | . 14 14 11 11 11 11 5 9 5 13 12 10 11 12 4 2 . . 3 . . . . . . . . . . . . Hover 2 | . . . . . . . . . . . . . . . . . 5 9 12 15 15 19 19 15 8 2 . . . . . Device 6 | . 1 . 21 22 22 21 9 9 . 6 . 5 8 2 . . . 2 . 5 10 13 14 3 6 . 5 2 . 4 9 Storage 6 | . 14 14 11 11 11 11 9 10 9 7 7 7 7 5 . . 4 6 5 5 5 5 5 4 4 4 3 5 4 4 3 Processor 8 | . . . . . . 1 9 9 11 15 15 15 15 15 7 7 5 6 5 5 5 5 9 9 9 9 8 8 8 8 9 Hackware 23 | . . . 10 11 11 11 11 16 27 21 20 25 22 26 19 27 24 23 38 40 32 34 25 33 21 12 13 33 38 29 29 Protection 4 | . 7 14 . . . . 9 7 6 9 10 5 3 6 4 7 11 9 3 4 . . 3 1 . . 2 3 4 4 2 Energy Gun 1 | . 6 . . . 1 11 1 . . . . . . . . 1 5 2 . . . . . . . . . . . 3 . Energy Cannon 1 | . . . 8 11 9 . 6 2 . . . . . 1 . . . . . . . . . . 1 . . 3 4 1 2 Ballistic Gun 4 | . 11 14 10 11 9 . 7 11 16 10 5 4 4 4 . . . 1 4 2 . . . 2 . . . . . . . Ballistic Cannon 1 | . 7 14 2 . . . . . . . 4 6 . . 3 . . . . 3 6 5 6 . 1 . . . . . . Special Weapon 1 | . . . . . . . . . . 1 . . 4 3 1 2 5 5 4 4 3 3 2 3 . . 3 3 4 2 3 Naked Turns . | . . . . . . . . . . . . . . . . . . . . . . . . . . . . . . . . Heaviest Build 124 | 10 31 31 36 36 37 37 62 63 58 105 119 113 116 124 19 24 21 31 31 49 47 50 62 46 31 22 50 61 61 67 84 Greatest Support 174 | 20 20 10 10 10 10 23 42 16 40 40 28 28 28 24 10 12 20 31 42 57 48 51 60 51 31 16 80 170 172 174 138 Greatest Overweight (x) 10 | . 3 3 3 3 3 3 3 3 3 4 7 10 9 5 1 2 1 1 . 1 . . 1 8 10 1 5 . . . . Average Overweight (x) 1 | . 2 3 2 3 3 2 1 3 2 3 4 4 3 2 . . . . . . . . . . . . . . . . . Largest Inventory Capacity 25 | 8 15 15 15 15 15 15 20 20 20 25 25 25 25 25 5 5 10 10 10 15 15 15 15 15 10 10 10 10 10 10 20 Average Capacity 16 | 7 14 15 15 15 15 15 15 20 20 24 25 25 25 23 5 5 9 10 10 12 15 15 15 14 10 10 9 10 10 10 9 Most Carried 25 | 5 15 15 15 15 15 15 17 20 20 25 25 25 25 25 5 5 9 10 10 13 14 15 15 15 10 10 10 10 10 10 10 Average Carried 15 | 2 11 14 14 14 14 14 13 19 19 23 24 23 24 22 3 4 7 9 9 10 13 14 14 13 6 9 8 9 9 9 8 Final Capacity 25 | 8 15 15 15 15 15 15 20 20 20 25 25 25 25 5 5 5 10 10 10 15 15 15 15 10 10 10 10 10 10 10 5 Final Carried 25 | 5 15 15 15 15 15 15 17 20 20 25 24 25 25 5 5 5 9 10 10 12 14 15 12 6 10 9 10 10 10 10 4 Class Distribution -------------------- 35% | Bothacker-Mutant 29% | Botlord-Mutant 27% | Mutant 5% | Scavenger-Mutant Dominant Class ---------------- Mutant | -10/Materials Mutant | -10/Mines Mutant | -9/Materials Mutant | -9/Mines Mutant | -9/Exiles Mutant | -8/Mines Mutant | -8/Materials Mutant | -8/Garrison Bothacker-Mutant | -8/Materials Bothacker-Mutant | -7/Factory Bothacker-Mutant | -7/Garrison Bothacker-Mutant | -7/Factory Bothacker-Mutant | -7/Garrison Bothacker-Mutant | -6/Factory Bothacker-Mutant | -6/Garrison Bothacker-Mutant | -5/Factory Mutant | -5/Waste Mutant | -5/Factory Botlord-Mutant | -5/Garrison Botlord-Mutant | -4/Factory Botlord-Mutant | -4/Waste Botlord-Mutant | -4/Factory Bothacker-Mutant | -4/Garrison Botlord-Mutant | -3/Research Bothacker-Mutant | -3/Quarantine Bothacker-Mutant | -3/Garrison Scavenger-Mutant | -2/Research Botlord-Mutant | -2/Garrison Botlord-Mutant | -2/Research Botlord-Mutant | -2/Garrison Botlord-Mutant | -1/Access Resources | -11 -10 -10 -9 -9 -9 -8 -8 -8 -8 -7 -7 -7 -7 -6 -6 -5 -5 -5 -5 -4 -4 -4 -4 -3 -3 -3 -2 -2 -2 -2 -1 ----------- Run | Scr Mat Min Mat Min Exi Min Mat Gar Mat Fac Gar Fac Gar Fac Gar Fac Was Fac Gar Fac Was Fac Gar Res Qua Gar Res Gar Res Gar Acc Matter Collected 13307 | 248 354 51 449 91 . 98 441 373 521 113 757 791 1183 1120 387 25 251 108 627 937 201 98 195 232 292 . 350 986 210 853 965 Remotely 648 | . . . 177 . . . . . . . . . . 187 . . . . . . . . . 68 1 . . . . . 215 Salvage Created 11708 | . 270 39 491 132 . 421 1255 514 664 147 229 705 474 1340 212 25 . . 152 351 . 148 96 82 279 . 40 271 153 765 2453 Parts 531 | . 23 4 31 16 . 21 71 25 29 9 8 38 20 50 8 . . . 6 17 . 5 1 9 4 . . 13 4 32 87 Haulers Intercepted 14 | . 2 . 1 . . . 5 . 2 . . . . . . . . . . 1 . 2 . . . . . . . . 1 Recyclers Shooed 8 | . . . . . . . . . 1 . . . . 5 . . . . . . . . . 1 . . . . . . 1 Parts Field Recycled 2 | . . . . . . . . . . . . . . . . . . . . . . . . . . . 2 . . . . Retrieved Matter 25 | . . . . . . . . . . . . . . . . . . . . . . . . . . . 25 . . . . Parts Self-Destructed . | . . . . . . . . . . . . . . . . . . . . . . . . . . . . . . . . Prevented . | . . . . . . . . . . . . . . . . . . . . . . . . . . . . . . . . Kills | -11 -10 -10 -9 -9 -9 -8 -8 -8 -8 -7 -7 -7 -7 -6 -6 -5 -5 -5 -5 -4 -4 -4 -4 -3 -3 -3 -2 -2 -2 -2 -1 ------- Run | Scr Mat Min Mat Min Exi Min Mat Gar Mat Fac Gar Fac Gar Fac Gar Fac Was Fac Gar Fac Was Fac Gar Res Qua Gar Res Gar Res Gar Acc Combat Hostiles Destroyed 213 | . 9 3 14 6 . 10 28 19 11 2 7 14 11 16 5 1 . . 3 5 . . 2 1 . 3 . 4 2 8 29 Guns 85 | . 7 1 7 1 . 10 11 6 8 2 4 4 5 12 . 1 . . 1 . . . . 1 . . . . . 3 1 Cannons 64 | . 2 2 7 2 . . 7 3 . . 3 4 1 . 5 . . . 2 5 . . 2 . . . . 2 2 1 14 AOE 54 | . . . . 3 . . 10 10 3 . . 6 5 4 . . . . . . . . . . . 3 . . . 2 8 Classes Destroyed 21 | . 4 . 1 . . 2 4 . 2 1 2 . 1 . . . . . 1 . . . . . . . . 1 . 1 1 Worker 12 | . . . . . . . 1 . . . . 4 . 3 . . . . . 3 . . . . . . . . . . 1 Builder 13 | . . . . . . . 1 . . . . 6 . 2 . . . . . . . . . . . . 2 . . . 2 Tunneler 3 | . . . . . . 1 . . . . . 1 . . . . . . . . . . . 1 . . . . . . . Hauler 14 | . 2 . 1 . . . 5 . 2 . . . . . . . . . . 1 . 2 . . . . . . . . 1 Recycler 10 | . . . . . . . . . 1 . . 1 . 5 . . . . . . . . . . 2 . . . . . 1 Mechanic 1 | . . . . . . . . . . . . . . . . . . . . . . . . . . . . . . . 1 Operator 4 | . 1 . . . . . 2 . 1 . . . . . . . . . . . . . . . . . . . . . . Watcher 2 | . . . . . . . . . 2 . . . . . . . . . . . . . . . . . . . . . . Swarmer 46 | . 6 3 6 3 . 3 8 3 . . 2 . 5 . . 1 . . . . . . . . . 3 . . . . 3 Cutter 2 | . . . . . . . . . . . . . . . . . . . 2 . . . . . . . . . . . . Saboteur 1 | . . . . . . . . . . . . . 1 . . . . . . . . . . . . . . . . . . Grunt 100 | . 3 . 4 3 . 6 12 10 9 . 1 7 5 9 2 . . . 1 2 . . 2 . . . . . 2 5 17 Brawler 6 | . . . . . . . 1 1 . . . 2 . . . . . . . . . . . . . . . . . 1 1 Duelist 3 | . . . . . . 1 . . . . 1 . . . . . . . . . . . . . . . . . . . 1 Protector 4 | . . . . . . . . . . . 1 1 . 1 . . . . . . . . . . . . . . . . 1 Sentry 21 | . . . 4 . . . 6 4 1 1 2 1 . . 2 . . . . . . . . . . . . . . . . Demolisher 1 | . . . . . . . . . . . 1 . . . . . . . . . . . . . . . . . . . . Specialist 2 | . . . . . . . . . . . . . . . . . . . . . . . . . . . . 1 . . 1 Hunter 6 | . . . . . . . 1 1 1 1 . . 2 . . . . . . . . . . . . . . . . . . Programmer 23 | . . . . . . . . . . 1 . 3 . 6 1 . . . . 3 . . . 1 . . . 3 . . 5 Behemoth 2 | . . . . . . . . . . . . . . . . . . . . . . . . . . . . . . 2 . Martyr 1 | . . . . . . . . . . . . . . . . . . . 1 . . . . . . . . . . . . Best Kill Streak 14 | . 3 3 4 3 . 7 14 4 5 1 3 8 7 9 3 1 . . 2 3 . 1 1 1 1 3 2 2 2 3 9 Combat Bots Only 12 | . 3 3 4 3 . 6 12 4 5 1 3 5 7 5 3 1 . . 2 2 . . 1 1 . 3 . 2 2 3 7 Max Kills in Single Turn 4 | . 1 1 1 2 . 1 2 2 2 1 2 3 4 2 1 1 . . 1 1 . 1 1 1 1 2 1 1 1 1 2 Gunslinging 1 | . . . . . . . . . . . 1 . 1 . . . . . . . . . . . . . . . . . . Exploded 3 | . . . . 2 . . 2 2 2 . . 2 3 1 . . . . . . . . . . . 2 . . . 1 2 Melee . | . . . . . . . . . . . . . . . . . . . . . . . . . . . . . . . . Uniques/NPCs Destroyed . | . . . . . . . . . . . . . . . . . . . . . . . . . . . . . . . . Combat | -11 -10 -10 -9 -9 -9 -8 -8 -8 -8 -7 -7 -7 -7 -6 -6 -5 -5 -5 -5 -4 -4 -4 -4 -3 -3 -3 -2 -2 -2 -2 -1 -------- Run | Scr Mat Min Mat Min Exi Min Mat Gar Mat Fac Gar Fac Gar Fac Gar Fac Was Fac Gar Fac Was Fac Gar Res Qua Gar Res Gar Res Gar Acc Damage Taken 29663 | . 253 54 783 81 . 300 1277 709 938 302 1628 1047 830 2884 460 289 13 24 230 1270 . 93 2080 2250 211 475 400 886 192 2519 7185 Core 6378 | . 41 . 143 12 . 91 207 144 80 114 232 92 100 714 122 53 13 . 36 274 . . 588 903 47 113 192 129 42 295 1601 Absorbed by Shields 790 | . . . . . . . . . . . 118 . 24 . 50 11 . . . . . . 42 . . 51 . 62 . 150 282 Redirected to Shielding 317 | . . . . . . . 42 . . . . . . 161 . . . . . . . . . 104 . . . . . 10 . Regen/Repaired (Parts) 107 | . . . . . . . . . 11 . . . . . . . . . . 96 . . . . . . . . . . . Core Remaining (%) 45 | 100 . 83 . . . 38 . . 21 . . . 23 . 1 . . . 89 . . . 25 . . 16 . . . 54 . Volleys Fired 1140 | . 41 5 45 8 . . 74 47 54 16 26 58 75 100 20 14 29 2 38 92 8 15 15 22 18 4 9 49 20 69 167 Largest 2 | . 2 2 2 2 . . 2 2 2 2 2 2 2 2 2 2 1 1 2 2 1 2 2 2 1 1 1 2 1 2 2 Hottest 186 | . 70 55 83 91 . . 91 91 48 73 76 76 69 97 106 106 30 5 90 114 57 123 123 90 94 94 10 186 120 182 130 Shots Fired 1597 | . 70 10 88 14 . 42 152 70 97 27 43 90 79 145 34 15 29 2 43 109 9 19 22 22 16 4 9 54 20 86 177 Gun 696 | . 56 5 43 6 . 42 88 42 91 22 31 44 12 94 . 3 16 . 17 14 . . . 9 . . . . . 35 26 Cannon 443 | . 14 5 45 6 . . 53 12 . . 5 41 5 3 28 2 . . 5 48 7 13 18 12 16 1 . 18 5 20 61 Launcher 88 | . . . . 2 . . 11 16 6 . 4 5 9 9 . . . . . 1 . . . . . 3 . . . 4 18 Special 370 | . . . . . . . . . . 5 3 . 53 39 6 10 13 2 21 46 2 6 4 1 . . 9 36 15 27 72 Kinetic 759 | . 43 10 61 6 . . 68 39 91 21 36 85 12 94 28 2 . . 22 62 7 13 18 21 14 . . 5 . 1 . Thermal 365 | . 27 . 27 6 . 42 73 12 . . . . . . . 3 16 . . . . . . . . . . 13 5 54 87 Explosive 66 | . . . . 2 . . 11 16 6 . 4 5 9 9 . . . . . 1 . . . . . 3 . . . . . Electromagnetic 37 | . . . . . . . . 3 . 1 . . 5 3 . . . . . . . . . . 2 1 . . . 4 18 Robot Hit Streak 28 | . 7 3 11 5 . 10 16 15 16 10 17 8 28 11 17 5 9 10 10 16 4 12 11 5 7 . 9 14 7 12 22 Robot Miss Streak 6 | . 4 2 2 1 . 2 6 4 2 2 2 6 3 4 1 1 1 1 3 4 . 1 3 3 2 4 . 2 1 3 4 Penetration Max 1 | . . . . . . . . . . . . 1 . 1 . . . . 1 1 . . . 1 . . . . . . . Secondary Targets 4 | . . . . . . . 1 . . . 1 . 1 1 . . . . . . . . . . . . . . . . . Max Gunslinging Chain 1 | . . . . . . . 1 . . . 1 . 1 1 . . . . . . . . . . . . . . . . . Autonomous 63 | . . . . . . 42 21 . . . . . . . . . . . . . . . . . . . . . . . . Shots Hit Robots 1135 | . 40 5 64 9 . 34 100 32 68 20 45 70 64 112 28 11 23 1 29 75 2 12 14 18 8 . 11 40 17 60 123 Core Hits 559 | . 19 3 21 7 . 16 62 40 31 6 38 45 27 106 11 1 2 . 8 12 . 3 5 5 6 9 . 2 2 17 55 Critical Kills 10 | . . . . . . . 1 . 1 . . 1 . . . . . . . . . 1 . . 2 . . 2 . 1 1 Critical Parts Destroyed 9 | . . . . . . . 1 . . . . . 2 1 . . . . . . . . 1 . 1 . . 2 . 1 . Critical Strikes 34 | . . . . . . . 2 . 1 . . 5 2 1 2 . . . 2 4 . 1 2 1 3 . . 4 . 3 1 Burn 1 | . . . . . . . . . . . . . . . . . . . . . . . . . . . . . . 1 . Meltdown 4 | . . . . . . . 1 . . . . . . . . . . . . . . . . . . . . 1 . 1 1 Destroy 13 | . . . . . . . 1 . 1 . . 1 . 1 . . . . 1 . . 1 1 . 3 . . 2 . 1 . Blast 13 | . . . . . . . . . . . . 4 . . 2 . . . 1 4 . . 1 1 . . . . . . . Smash 3 | . . . . . . . . . . . . . 2 . . . . . . . . . . . . . . 1 . . . Melee Attacks 80 | . . . . . . . . . 2 4 22 20 15 2 . . . . . . . . . 2 . . 7 6 . . . Impact 37 | . . . . . . . . . . 4 3 . 15 2 . . . . . . . . . . . . 7 6 . . . Slashing . | . . . . . . . . . . . . . . . . . . . . . . . . . . . . . . . . Piercing . | . . . . . . . . . . . . . . . . . . . . . . . . . . . . . . . . Sneak Attacks 13 | . . . . . . . . . . . . 10 . . . . . . . . . . . 1 . . 2 . . . . Combat Hostiles . | . . . . . . . . . . . . . . . . . . . . . . . . . . . . . . . . Follow-up Attacks . | . . . . . . . . . . . . . . . . . . . . . . . . . . . . . . . . Damage Inflicted 28784 | . 492 90 999 324 . 983 3030 1634 1472 271 714 2355 1335 2995 748 56 133 . 395 1436 . 169 402 680 198 634 159 415 218 1640 4807 Guns 9725 | . 349 44 384 59 . 978 1038 310 1046 271 425 528 144 1788 . 20 133 . 298 404 . . . 178 . . . . . 690 638 Cannons 8534 | . 143 46 615 81 . . 759 202 . . 107 664 124 60 738 34 . . 97 947 . 169 402 433 175 . . 333 218 641 1546 Explosions 9918 | . . . . 184 . . 1233 1122 426 . 182 1163 815 1147 . . . . . 85 . . . . . 634 . . . 309 2618 Melee 489 | . . . . . . . . . . . . . 252 . . . . . . . . . . . . . 155 82 . . . Ramming 118 | . . . . . . 5 . . . . . . . . 10 2 . . . . . . . 69 23 . 4 . . . 5 Kinetic 10916 | . 268 90 633 59 . . 631 310 1046 271 532 1192 144 1788 738 34 . . 395 1338 . 169 402 611 175 . . 67 . 23 . Thermal 7927 | . 224 . 366 81 . 978 1166 202 . . . 254 240 . . 20 133 . . . . . . . . . . 266 218 1308 2471 Explosive 7261 | . . . . 184 . . 1233 1122 426 . 182 909 575 1147 . . . . . 85 . . . . . 634 . . . . 764 Electromagnetic 2060 | . . . . . . . . . . . . . 124 60 . . . . . . . . . . . . . . . 309 1567 Impact 502 | . . . . . . . . . . . . . 252 . . . . . . 13 . . . . . . 155 82 . . . Slashing . | . . . . . . . . . . . . . . . . . . . . . . . . . . . . . . . . Piercing . | . . . . . . . . . . . . . . . . . . . . . . . . . . . . . . . . Highest Corruption 52 | . . . . . . . . . . 1 1 4 15 10 13 . . 2 4 5 19 19 23 38 51 52 . 24 24 38 23 Average Corruption 11 | . . . . . . . . . . 1 1 1 5 5 12 . . 2 2 1 14 19 19 10 39 51 . 22 24 36 5 Corruption Purged . | . . . . . . . . . . . . . . . . . . . . . . . . . . . . . . . . Corruption Blocked 10 | . . . . . . . . . . . . . . . . . . . . 10 . . . . . . . . . . . Effects 420 | . . . . . . . . . . 4 20 27 44 16 14 . . 1 14 10 12 9 16 23 23 9 . 69 17 77 15 Message Errors 97 | . . . . . . . . . . 1 5 5 7 4 6 . . . 6 3 . 4 2 3 5 2 . 13 5 24 2 Matter Fused 103 | . . . . . . . . . . 1 4 9 10 3 3 . . 1 4 1 2 1 4 5 8 3 . 18 3 22 1 Heat Flow Errors 53 | . . . . . . . . . . . 2 2 12 3 2 . . . 2 2 2 1 1 1 2 1 . 8 3 6 3 Energy Discharges 48 | . . . . . . . . . . 1 3 6 5 1 1 . . . . 1 2 1 1 3 2 . . 13 1 5 2 Parts Rejected 8 | . . . . . . . . . . . 1 . . 1 . . . . . . . . 1 . . . . 1 1 1 2 Data Loss (minor) 48 | . . . . . . . . . . 1 3 2 4 2 . . . . 1 1 2 1 2 3 1 2 . 7 3 10 3 Data Loss (major) 17 | . . . . . . . . . . . . . 3 1 . . . . 1 1 . 1 1 2 . . . 3 . 4 . Misfires 9 | . . . . . . . . . . . 1 2 1 . 1 . . . . . 1 . . . . . . 1 . 2 . Alerts 9 | . . . . . . . . . . . 1 1 1 . . . . . . 1 1 . 1 . . . . 3 . . . Misdirections 20 | . . . . . . . . . . . . . . . 1 . . . . . 2 . 3 5 3 1 . 1 1 3 . Weapon Failures 8 | . . . . . . . . . . . . . 1 1 . . . . . . . . . 1 2 . . 1 . . 2 Overload Shots . | . . . . . . . . . . . . . . . . . . . . . . . . . . . . . . . . Overflow Damage 738 | . . . . . . . 48 . . . . 98 146 . 4 . . . . 41 . . . 31 . 24 95 43 13 2 193 Projectiles 181 | . . . . . . . 4 . . . . 2 . . 4 . . . . 41 . . . 18 . . . 15 13 2 82 Explosions 339 | . . . . . . . 44 . . . . 96 64 . . . . . . . . . . . . 24 . . . . 111 Melee 218 | . . . . . . . . . . . . . 82 . . . . . . . . . . 13 . . 95 28 . . . Knockbacks 38 | . 1 1 . . . . . . . . 1 8 . . . . . . 1 13 . . 6 6 . . 1 . . . . Impact 2 | . . . . . . . . . . . . . . . . . . . . . . . . 1 . . 1 . . . . Kinetic 36 | . 1 1 . . . . . . . . 1 8 . . . . . . 1 13 . . 6 5 . . . . . . . Secondary . | . . . . . . . . . . . . . . . . . . . . . . . . . . . . . . . . Self-Inflicted Damage 651 | . . . . . . . . 42 . 72 31 . 86 21 5 1 . . . . . . . 33 10 142 2 . . . 206 Shots 14 | . . . . . . . . 2 . 1 1 . 2 2 . . . . . . . . . . . 2 . . . . 4 Rammed 22 | . . . . . . 1 . . . . . . . . 1 1 . . . . . . . 8 8 . 2 . . . 1 Targets Rammed 22 | . . . . . . 1 . . . . . . . . 1 1 . . . . . . . 8 8 . 2 . . . 1 Kicked . | . . . . . . . . . . . . . . . . . . . . . . . . . . . . . . . . Crushed . | . . . . . . . . . . . . . . . . . . . . . . . . . . . . . . . . Highest Temperature 412 | . 103 15 43 90 . 5 199 198 51 . 271 252 244 233 87 27 . . 251 255 144 156 412 279 71 213 . 227 305 292 197 Average Temperature 68 | . 36 8 15 44 . 5 69 90 17 . 44 62 80 60 24 12 . . 65 82 58 63 182 132 62 92 . 61 124 88 62 Received Heat Transfer 5019 | . 66 . 336 27 . 153 540 270 441 48 342 327 204 489 126 126 . . 36 135 . 18 379 9 . . 90 36 45 232 544 Effects 8 | . . . . . . . . . . . 1 1 2 . . . . . . . . . 3 . . . . . . 1 . Shutdowns 1 | . . . . . . . . . . . . . . . . . . . . . . . 1 . . . . . . . . Energy Bleed 2 | . . . . . . . . . . . 1 1 . . . . . . . . . . . . . . . . . . . Interference 5 | . . . . . . . . . . . . . 2 . . . . . . . . . 2 . . . . . . 1 . Siege Activations . | . . . . . . . . . . . . . . . . . . . . . . . . . . . . . . . . Robots Corrupted 8 | . . . . . . . . . . . . . 1 . . . . . . . . . . . . . . . . 1 6 Combat Hostiles 6 | . . . . . . . . . . . . . . . . . . . . . . . . . . . . . . 1 5 Parts Fried 20 | . . . . . . . . . . . . . . . . . . . 2 . . . . . . . 6 1 . 1 10 Impact Corruptions 11 | . . . . . . . . . . . . . 2 . . . . . . . . . . 2 . . 5 2 . . . Robots Melted 4 | . . . . . . . 1 . . . . . . . . . . . . . . . . . . . . 1 . 1 1 Combat Hostiles 3 | . . . . . . . . . . . . . . . . . . . . . . . . . . . . 1 . 1 1 Parts Melted 21 | . 1 . 2 . . 1 3 1 . 1 . . . 2 . . . . 1 . . . . . . . . 3 1 . 5 Heat Transferred 10066 | . 666 . 777 148 . 1258 1887 370 . . . 150 350 . . 74 555 . . . . . . . . . . 185 185 1239 2222 Parts Sabotaged . | . . . . . . . . . . . . . . . . . . . . . . . . . . . . . . . . Parts Stolen . | . . . . . . . . . . . . . . . . . . . . . . . . . . . . . . . . Parts Stripped . | . . . . . . . . . . . . . . . . . . . . . . . . . . . . . . . . Power Chain Reactions 4 | . . . . . . . . . . . . . 1 . . . . . . . . . . . . . . . . . 3 Missiles Intercepted . | . . . . . . . . . . . . . . . . . . . . . . . . . . . . . . . . Alert | -11 -10 -10 -9 -9 -9 -8 -8 -8 -8 -7 -7 -7 -7 -6 -6 -5 -5 -5 -5 -4 -4 -4 -4 -3 -3 -3 -2 -2 -2 -2 -1 ------- Run | Scr Mat Min Mat Min Exi Min Mat Gar Mat Fac Gar Fac Gar Fac Gar Fac Was Fac Gar Fac Was Fac Gar Res Qua Gar Res Gar Res Gar Acc Peak Influence 1552 | . 157 70 453 249 . 170 520 1058 692 294 397 513 865 939 822 453 303 391 888 745 207 233 247 133 493 541 366 452 585 846 1552 Initial 534 | . . . 27 47 . . 66 308 515 263 88 207 235 453 534 420 158 72 273 466 207 136 150 76 . 264 303 158 254 438 507 Average 418 | . 46 68 234 121 . 89 186 712 555 191 328 199 571 591 677 332 217 219 688 572 197 176 181 71 104 464 297 363 347 690 1041 Maximum Alert Level 4 | . . . 2 1 . . 2 3 2 1 1 2 3 3 3 2 1 1 3 3 1 1 1 . 2 2 1 2 2 3 4 Low Security (%) 27 | 100 100 100 46 70 . 100 74 . . 57 5 43 . 5 . . 44 42 . . 57 70 60 100 74 . 21 14 . . . Level 1 26 | . . . 27 29 . . 10 9 . 42 94 43 32 10 . 72 55 57 12 5 43 29 40 . 22 22 78 28 66 . . Level 2 27 | . . . 26 . . . 15 35 100 . . 12 31 45 39 27 . . 37 90 . . . . 2 77 . 57 33 48 10 Level 3 15 | . . . . . . . . 54 . . . . 36 39 60 . . . 49 3 . . . . . . . . . 51 50 Level 4 2 | . . . . . . . . . . . . . . . . . . . . . . . . . . . . . . . 39 Level 5 . | . . . . . . . . . . . . . . . . . . . . . . . . . . . . . . . . High Security . | . . . . . . . . . . . . . . . . . . . . . . . . . . . . . . . . Max Security . | . . . . . . . . . . . . . . . . . . . . . . . . . . . . . . . . Squads Dispatched 76 | . 2 . 1 . . . 4 . 4 5 . 15 . 9 . . . . . 9 . . . 1 . . 1 . 7 . 18 Investigation 9 | . 1 . 1 . . . . . 3 . . 2 . . . . . . . 1 . . . . . . . . . . 1 Extermination 17 | . . . . . . . . . . 3 . 3 . 2 . . . . . 3 . . . 1 . . 1 . 1 . 3 Reinforcement 24 | . 1 . . . . . 3 . 1 2 . 3 . 4 . . . . . 2 . . . . . . . . 2 . 6 Assault 15 | . . . . . . . . . . . . 1 . 2 . . . . . 3 . . . . . . . . 1 . 8 Garrison 11 | . . . . . . . 1 . . . . 6 . 1 . . . . . . . . . . . . . . 3 . . Intercept . | . . . . . . . . . . . . . . . . . . . . . . . . . . . . . . . . Searches Triggered 1 | . . . . . . . . . . . . . . . . . . . . . . . . . 1 . . . . . . Construction Impeded 4 | . . . . . . . . . . . . 1 . 2 . . . . . . . . . . . . . . . . 1 Haulers Reinforced 4 | . . . . . . . . . . 1 . . . 1 . . . . . 1 . . . . . . . . . . 1 Active Scanning Responses . | . . . . . . . . . . . . . . . . . . . . . . . . . . . . . . . . Cargo Convoy Interrupts 2 | . . . . . . . . . . . . . . 1 . . . . . 1 . . . . . . . . . . . Stealth | -11 -10 -10 -9 -9 -9 -8 -8 -8 -8 -7 -7 -7 -7 -6 -6 -5 -5 -5 -5 -4 -4 -4 -4 -3 -3 -3 -2 -2 -2 -2 -1 --------- Run | Scr Mat Min Mat Min Exi Min Mat Gar Mat Fac Gar Fac Gar Fac Gar Fac Was Fac Gar Fac Was Fac Gar Res Qua Gar Res Gar Res Gar Acc Distress Signals 23 | . 1 . 4 . . . 3 . 2 . . 1 1 3 . . . . . 4 . . . . 1 . 1 . . . 2 Communications Jammed 62 | . . . . . . . . . . . . . . . . . . . . 11 . . . . . . . . . . 51 Distress Signals 51 | . . . . . . . . . . . . . . . . . . . . 11 . . . . . . . . . . 40 Times Spotted 694 | . 22 2 24 6 . 13 46 21 19 8 28 29 34 69 15 9 5 3 21 51 5 3 19 7 6 9 7 30 9 37 137 Peak Tracking Total 14 | . 5 1 7 3 . 5 7 4 5 2 4 6 8 14 5 5 2 1 4 9 5 3 12 3 5 3 4 6 3 13 14 Tactical Retreats 45 | . 1 . . . . 1 . 4 . . . 2 . 1 3 3 . . 1 5 2 . 1 . 1 1 1 1 . 2 15 Traps | -11 -10 -10 -9 -9 -9 -8 -8 -8 -8 -7 -7 -7 -7 -6 -6 -5 -5 -5 -5 -4 -4 -4 -4 -3 -3 -3 -2 -2 -2 -2 -1 ------- Run | Scr Mat Min Mat Min Exi Min Mat Gar Mat Fac Gar Fac Gar Fac Gar Fac Was Fac Gar Fac Was Fac Gar Res Qua Gar Res Gar Res Gar Acc Traps Triggered 46 | . 1 . 1 . . . . 4 2 2 7 2 2 1 . 2 . 1 2 1 . . . 2 1 3 . 1 . 7 4 Indirectly . | . . . . . . . . . . . . . . . . . . . . . . . . . . . . . . . . Trap Hack Attempts 4 | . . . . . . . . . . . 4 . . . . . . . . . . . . . . . . . . . . Triggered . | . . . . . . . . . . . . . . . . . . . . . . . . . . . . . . . . Disarmed . | . . . . . . . . . . . . . . . . . . . . . . . . . . . . . . . . Reprogrammed 1 | . . . . . . . . . . . 1 . . . . . . . . . . . . . . . . . . . . Reused . | . . . . . . . . . . . . . . . . . . . . . . . . . . . . . . . . Traps Extracted . | . . . . . . . . . . . . . . . . . . . . . . . . . . . . . . . . Installed . | . . . . . . . . . . . . . . . . . . . . . . . . . . . . . . . . Triggered 1 | . . . . . . . . . . . . . . . . . . . . 1 . . . . . . . . . . . Machines | -11 -10 -10 -9 -9 -9 -8 -8 -8 -8 -7 -7 -7 -7 -6 -6 -5 -5 -5 -5 -4 -4 -4 -4 -3 -3 -3 -2 -2 -2 -2 -1 ---------- Run | Scr Mat Min Mat Min Exi Min Mat Gar Mat Fac Gar Fac Gar Fac Gar Fac Was Fac Gar Fac Was Fac Gar Res Qua Gar Res Gar Res Gar Acc Machines Disabled 65 | . . . . 1 . . 3 5 2 1 4 9 9 4 1 . . . 4 1 . 1 1 . . 3 . 5 . 5 6 Max in Single Turn 4 | . . . . 1 . . 1 1 1 1 1 4 1 1 1 . . . 1 1 . 1 1 . . 2 . 1 . 1 1 Garrison Access 3 | . . . . . . . . . . . . . . 1 . . . . . 1 . . . . . . . . . . 1 Garrison Relay 28 | . . . . . . . . 4 . . 4 . 5 . 1 . . . 4 . . . 1 . . 1 . 4 . 4 . Phase Generator 2 | . . . . . . . . . . . . . 1 . . . . . . . . . . . . 1 . . . . . Machines Sabotaged . | . . . . . . . . . . . . . . . . . . . . . . . . . . . . . . . . Garrisons Compromised 1 | . . . . . . . . . . . . . . . . . . . . 1 . . . . . . . . . . . Overloaded Fab Kills . | . . . . . . . . . . . . . . . . . . . . . . . . . . . . . . . . Hacking | -11 -10 -10 -9 -9 -9 -8 -8 -8 -8 -7 -7 -7 -7 -6 -6 -5 -5 -5 -5 -4 -4 -4 -4 -3 -3 -3 -2 -2 -2 -2 -1 --------- Run | Scr Mat Min Mat Min Exi Min Mat Gar Mat Fac Gar Fac Gar Fac Gar Fac Was Fac Gar Fac Was Fac Gar Res Qua Gar Res Gar Res Gar Acc Machines Accessed 83 | . 6 . 4 1 2 . 4 . 2 4 . 6 . 12 . 7 . 3 . 12 . 3 . 2 3 . 3 . 3 . 6 Terminals 40 | . 6 . 3 1 . . 2 . 1 2 . 3 . 4 . 5 . . . 4 . 2 . 1 1 . 1 . 1 . 3 Fabricators 11 | . . . . . . . . . . . . 1 . 4 . . . 1 . 3 . . . 1 . . . . 1 . . Repair Stations 7 | . . . . . . . . . 1 . . . . . . 1 . . . 3 . . . . . . 1 . . . 1 Recycling Units 6 | . . . . . . . . . . 1 . . . 2 . . . 1 . 1 . . . . . . . . . . 1 Scanalyzers 4 | . . . 1 . . . 1 . . . . . . 1 . . . . . . . . . . 1 . . . . . . Garrison Access 13 | . . . . . . . 1 . . 1 . 2 . 1 . 1 . 1 . 1 . 1 . . 1 . 1 . 1 . 1 Total Hacks 205 | . 21 . 14 4 5 . 10 . 8 8 . 14 . 27 . 25 . 6 . 24 . 10 . 4 5 . 5 . 6 . 9 Successful 108 | . 10 . 9 1 5 . 8 . 6 3 . 7 . 10 . 15 . 3 . 11 . 6 . . 5 . 3 . 2 . 4 Failed 97 | . 11 . 5 3 . . 2 . 2 5 . 7 . 17 . 10 . 3 . 13 . 4 . 4 . . 2 . 4 . 5 Catastrophic 20 | . 2 . . 1 . . . . . 1 . 3 . 2 . 3 . . . 3 . . . 1 . . 1 . 1 . 2 Database Lockouts . | . . . . . . . . . . . . . . . . . . . . . . . . . . . . . . . . Manual 98 | . 17 . 5 3 1 . 3 . 4 . . 9 . 15 . 12 . 3 . 11 . 4 . 1 . . 3 . 4 . 3 Terminals 117 | . 21 . 12 4 . . 6 . 4 4 . 8 . 8 . 21 . . . 9 . 8 . 1 2 . 2 . 2 . 5 Fabricators 26 | . . . . . . . . . . . . 3 . 10 . . . 2 . 6 . . . 3 . . . . 2 . . Repair Stations 11 | . . . . . . . . . 4 . . . . . . 2 . . . 3 . . . . . . 1 . . . 1 Recycling Units 16 | . . . . . . . . . . 3 . . . 5 . . . 3 . 4 . . . . . . . . . . 1 Scanalyzers 8 | . . . 2 . . . 2 . . . . . . 3 . . . . . . . . . . 1 . . . . . . Garrison Access 22 | . . . . . . . 2 . . 1 . 3 . 1 . 2 . 1 . 2 . 2 . . 2 . 2 . 2 . 2 Terminal Hacks 45 | . 8 . 6 1 5 . 3 . 1 2 . 3 . 3 . 7 . . . 2 . 1 . . 2 . . . . . 1 Record 6 | . . . . . 4 . . . . . . . . . . . . . . . . . . . 2 . . . . . . Part Schematic 2 | . 1 . . . . . . . . . . . . . . 1 . . . . . . . . . . . . . . . Robot Analysis 1 | . . . . . . . . . . . . . . . . 1 . . . . . . . . . . . . . . . Level Access Points 1 | . . . . . . . . . 1 . . . . . . . . . . . . . . . . . . . . . . Branch Access Points 3 | . 1 . 1 . . . . . . . . 1 . . . . . . . . . . . . . . . . . . . Alert Level 1 | . . . 1 . . . . . . . . . . . . . . . . . . . . . . . . . . . . Unreport Threat 7 | . 1 . 1 . . . 1 . . . . 2 . 1 . 1 . . . . . . . . . . . . . . . Locate Traps 8 | . 1 . . . . . . . . 2 . . . 1 . 2 . . . 1 . 1 . . . . . . . . . Recall Investigation 1 | . 1 . . . . . . . . . . . . . . . . . . . . . . . . . . . . . . Hauler Manifests 3 | . 1 . 1 . . . 1 . . . . . . . . . . . . . . . . . . . . . . . . Registered Components 2 | . . . . . . . . . . . . . . 1 . 1 . . . . . . . . . . . . . . . Registered Prototypes 1 | . . . . . . . . . . . . . . . . . . . . 1 . . . . . . . . . . . Zone Layout 8 | . 2 . 2 1 . . 1 . . . . . . . . 1 . . . . . . . . . . . . . . 1 EX-Prototype ID Bank 1 | . . . . . 1 . . . . . . . . . . . . . . . . . . . . . . . . . . Fabricator Hacks 6 | . . . . . . . . . . . . . . 2 . . . 1 . 3 . . . . . . . . . . . Network Status 4 | . . . . . . . . . . . . . . 2 . . . 1 . 1 . . . . . . . . . . . Load Schematic 1 | . . . . . . . . . . . . . . . . . . . . 1 . . . . . . . . . . . Build 1 | . . . . . . . . . . . . . . . . . . . . 1 . . . . . . . . . . . Repair Station Hacks 4 | . . . . . . . . . 3 . . . . . . 1 . . . . . . . . . . . . . . . Scan Component 2 | . . . . . . . . . 2 . . . . . . . . . . . . . . . . . . . . . . Repair 1 | . . . . . . . . . 1 . . . . . . . . . . . . . . . . . . . . . . Refit 1 | . . . . . . . . . . . . . . . . 1 . . . . . . . . . . . . . . . Recycling Unit Hacks . | . . . . . . . . . . . . . . . . . . . . . . . . . . . . . . . . Scanalyzer 5 | . . . . . . . 2 . . . . . . 2 . . . . . . . . . . 1 . . . . . . Insert Component 3 | . . . . . . . 1 . . . . . . 1 . . . . . . . . . . 1 . . . . . . Analyze 2 | . . . . . . . 1 . . . . . . 1 . . . . . . . . . . . . . . . . . Garrison Access Hacks 20 | . . . . . . . 1 . . 1 . 2 . 1 . 2 . 1 . 2 . 2 . . 2 . 2 . 2 . 2 Unlock Access 10 | . . . . . . . 1 . . 1 . 1 . 1 . 1 . 1 . . . 1 . . 1 . 1 . 1 . . Seal Access 2 | . . . . . . . . . . . . . . . . . . . . 1 . . . . . . . . . . 1 Coupler Status 8 | . . . . . . . . . . . . 1 . . . 1 . . . 1 . 1 . . 1 . 1 . 1 . 1 Unauthorized Hacks 28 | . 2 . 3 . . . 2 . 2 . . 2 . 2 . 5 . 1 . 4 . 3 . . . . 1 . . . 1 Terminals 20 | . 2 . 3 . . . 2 . 2 . . 1 . . . 4 . . . 2 . 3 . . . . 1 . . . . Track 17 | . 2 . 3 . . . 1 . 1 . . 1 . . . 4 . . . 2 . 2 . . . . 1 . . . . Assimilate 1 | . . . . . . . . . . . . . . . . . . . . . . 1 . . . . . . . . . Disrupt 1 | . . . . . . . 1 . . . . . . . . . . . . . . . . . . . . . . . . Operators 1 | . . . . . . . . . 1 . . . . . . . . . . . . . . . . . . . . . . Fabricators 1 | . . . . . . . . . . . . . . 1 . . . . . . . . . . . . . . . . . Fabnet 1 | . . . . . . . . . . . . . . 1 . . . . . . . . . . . . . . . . . Repair Stations 3 | . . . . . . . . . . . . . . . . 1 . . . 1 . . . . . . . . . . 1 Mechanics 3 | . . . . . . . . . . . . . . . . 1 . . . 1 . . . . . . . . . . 1 Recycling Units 3 | . . . . . . . . . . . . . . 1 . . . 1 . 1 . . . . . . . . . . . Recyclers 3 | . . . . . . . . . . . . . . 1 . . . 1 . 1 . . . . . . . . . . . Scanalyzers . | . . . . . . . . . . . . . . . . . . . . . . . . . . . . . . . . Garrison Access 1 | . . . . . . . . . . . . 1 . . . . . . . . . . . . . . . . . . . Eject 1 | . . . . . . . . . . . . 1 . . . . . . . . . . . . . . . . . . . Data Cores Recovered . | . . . . . . . . . . . . . . . . . . . . . . . . . . . . . . . . Used . | . . . . . . . . . . . . . . . . . . . . . . . . . . . . . . . . Hacking Detections 69 | . 6 . 4 1 . . 1 . 2 4 . 6 . 10 . 5 . 3 . 9 . 3 . 2 2 . 3 . 3 . 5 Full Trace Events 2 | . . . . . . . . . 1 . . . . . . . . . . 1 . . . . . . . . . . . Feedback Events . | . . . . . . . . . . . . . . . . . . . . . . . . . . . . . . . . Feedback Blocked . | . . . . . . . . . . . . . . . . . . . . . . . . . . . . . . . . Robot Schematics Acquired . | . . . . . . . . . . . . . . . . . . . . . . . . . . . . . . . . Robots Built . | . . . . . . . . . . . . . . . . . . . . . . . . . . . . . . . . Authchips . | . . . . . . . . . . . . . . . . . . . . . . . . . . . . . . . . Time . | . . . . . . . . . . . . . . . . . . . . . . . . . . . . . . . . Total Robot Build Rating . | . . . . . . . . . . . . . . . . . . . . . . . . . . . . . . . . Part Schematics Acquired 4 | . 1 . . . . . 1 . . . . . . 1 . 1 . . . . . . . . . . . . . . . Parts Built 2 | . . . . . . . . . . . . . . . . . . . . 2 . . . . . . . . . . . Authchips . | . . . . . . . . . . . . . . . . . . . . . . . . . . . . . . . . Time 128 | . . . . . . . . . . . . . . . . . . . . 128 . . . . . . . . . . . Total Part Build Rating 16 | . . . . . . . . . . . . . . . . . . . . 16 . . . . . . . . . . . Parts Repaired 1 | . . . . . . . . . 1 . . . . . . . . . . . . . . . . . . . . . . Time 136 | . . . . . . . . . 136 . . . . . . . . . . . . . . . . . . . . . . Parts Recycled . | . . . . . . . . . . . . . . . . . . . . . . . . . . . . . . . . Recycled Matter . | . . . . . . . . . . . . . . . . . . . . . . . . . . . . . . . . Retrieved Matter . | . . . . . . . . . . . . . . . . . . . . . . . . . . . . . . . . Retrieved Components . | . . . . . . . . . . . . . . . . . . . . . . . . . . . . . . . . Parts Scanalyzed 2 | . . . . . . . 1 . . . . . . 1 . . . . . . . . . . . . . . . . . Part Schematics Acquired 2 | . . . . . . . 1 . . . . . . 1 . . . . . . . . . . . . . . . . . Parts Damaged . | . . . . . . . . . . . . . . . . . . . . . . . . . . . . . . . . Bothacking | -11 -10 -10 -9 -9 -9 -8 -8 -8 -8 -7 -7 -7 -7 -6 -6 -5 -5 -5 -5 -4 -4 -4 -4 -3 -3 -3 -2 -2 -2 -2 -1 ------------ Run | Scr Mat Min Mat Min Exi Min Mat Gar Mat Fac Gar Fac Gar Fac Gar Fac Was Fac Gar Fac Was Fac Gar Res Qua Gar Res Gar Res Gar Acc Used RIF Installer 8 | . . . . . . . . 1 . . 1 . 1 . 1 . . . 1 . . . . . . 1 . 1 . 1 . Coupler Efficiency 2 | . . . . . . . . . . . . . . . . . . . 1 . . . . . . . . 1 . . . Hotswap 1 | . . . . . . . . . . . . . . . . . . . . . . . . . . . . . . 1 . Command Fork 1 | . . . . . . . . . . . . . 1 . . . . . . . . . . . . . . . . . . Watcher Feeds 1 | . . . . . . . . . . . . . . . 1 . . . . . . . . . . . . . . . . Structural Interface 1 | . . . . . . . . . . . 1 . . . . . . . . . . . . . . . . . . . . Program Shield 1 | . . . . . . . . . . . . . . . . . . . . . . . . . . 1 . . . . . Robots Hacked 202 | . . . . . . . . . 2 4 13 12 13 22 3 5 8 1 9 24 2 4 1 2 . . 5 18 7 11 36 Non-combat 63 | . . . . . . . . . 1 1 . 6 . 14 . 4 2 1 . 13 . 2 . 1 . . 4 . 4 . 10 Combat 139 | . . . . . . . . . 1 3 13 6 13 8 3 1 6 . 9 11 2 2 1 1 . . 1 18 3 11 26 Robot Hacks Applied 249 | . . . . . . . . . 2 5 16 17 14 28 3 8 9 1 9 32 2 6 1 2 . . 9 19 12 11 43 parse_system 24 | . . . . . . . . . 1 . 2 2 1 . . 2 5 . . 4 1 1 . . . . 1 1 1 . 2 no_distress 8 | . . . . . . . . . . . . 1 . 2 . . . . . 2 . . . . . . 2 . . . 1 generate_echo 1 | . . . . . . . . . . . . . . . . . . . . . . . . . . . . . 1 . . find_chute 5 | . . . . . . . . . . 1 . . . 2 . 1 . . . 1 . . . . . . . . . . . deconstruct_machine 2 | . . . . . . . . . . . . 1 . . . 1 . . . . . . . . . . . . . . . hold_bot 1 | . . . . . . . . . . . . . . . . . . . . 1 . . . . . . . . . . . ignore_repairs 7 | . . . . . . . . . . . . 2 . 2 . . . . . . . . . . . . 2 . . . 1 map_walls 10 | . . . . . . . . . . . . 2 . 4 . . . . . 1 . . . . . . 1 . . . 2 map_earth 3 | . . . . . . . . . . . . 1 . . . 1 . . . . . . . . . . . . 1 . . find_fabricator 3 | . . . . . . . . . . . . . . 1 . . . . . . . 1 . . . . . . . . 1 find_dsf 1 | . . . . . . . . . . . . . . . . . . . . . . 1 . . . . . . . . . drop_inventory 8 | . . . . . . . . . . . . . . 3 . 1 . . . 2 . . . . . . . . . . 2 find_recycling 4 | . . . . . . . . . . . . 1 . 1 . . . . . 1 . . . . . . . . 1 . . ignore_parts 5 | . . . . . . . . . . . . 1 . 3 . . . . . 1 . . . . . . . . . . . find_station 1 | . . . . . . . . . . . . . . . . . . . . . . . . . . . 1 . . . . purge_threat 4 | . . . . . . . . . . . . . . . . . . . . 1 . . . . . . . . 1 . 2 find_terminals 1 | . . . . . . . . . . . . . . . . . . . . . . . . . . . . . 1 . . locate_traps 3 | . . . . . . . . . . . . . . . . . . . . 1 . . . . . . . . 2 . . block_reporting 2 | . . . . . . . . . . . . . . . . . . . . . . . . . . . . . 1 . 1 summon_haulers 1 | . . . . . . . . . . . . . . . . . . . . 1 . . . . . . . . . . . clear_repairs 1 | . . . . . . . . . . . . . . . . . . . . 1 . . . . . . . . . . . map_route 11 | . . . . . . . . . . . . . . 1 . 1 . 1 . 3 . . . 1 . . 1 . . . 3 relay_feed 1 | . . . . . . . . . . . . . . . . 1 . . . . . . . . . . . . . . . ignore_targets 4 | . . . . . . . . . . . . . . . . . 4 . . . . . . . . . . . . . . find_shortcuts 1 | . . . . . . . . . . . . . . . . . . . . 1 . . . . . . . . . . . find_garrison 3 | . . . . . . . . . . 1 . . . . . . . . . 1 . 1 . . . . . . . . . link_fov 2 | . . . . . . . . . . . 1 . . 1 . . . . . . . . . . . . . . . . . tweak_propulsion 1 | . . . . . . . . . . . . . . . . . . . . . . . . . . . . . . . 1 scatter_targeting 1 | . . . . . . . . . . 1 . . . . . . . . . . . . . . . . . . . . . disrupt_area 1 | . . . . . . . . . . . . . . . . . . . . . . . . . . . . . . . 1 overload_power 1 | . . . . . . . . . . . . . . 1 . . . . . . . . . . . . . . . . . amplify_resonance 2 | . . . . . . . . . . . . . . . . . . . . . 1 . . . . . . . . . 1 disable_weapons 8 | . . . . . . . . . . . 1 . 1 1 . . . . 1 1 . 2 . . . . . 1 . . . overwrite_iff 23 | . . . . . . . . . . . . . 2 . . . . . . . . . 1 . . . . 6 . 4 10 streamctrl_high 3 | . . . . . . . . . . . . . . . 2 . . . . . . . . . . . . . 1 . . formatsys_low 1 | . . . . . . . . . . . . . . . . . . . . 1 . . . . . . . . . . . formatsys_high 91 | . . . . . . . . . 1 2 12 6 10 6 1 . . . 8 8 . . . 1 . . 1 11 2 7 15 Relay Couplers Released 119 | . . . . . . . . 13 . . 18 4 19 4 5 . . . 15 . . . 4 . . 3 . 17 . 14 3 Ejected 4 | . . . . . . . . . . . . 4 . . . . . . . . . . . . . . . . . . . Machine Destruction 112 | . . . . . . . . 13 . . 18 . 19 4 5 . . . 15 . . . 4 . . 3 . 17 . 14 . Programmers 3 | . . . . . . . . . . . . . . . . . . . . . . . . . . . . . . . 3 Attached 91 | . . . . . . . . 3 1 1 10 6 10 8 4 . . . 8 4 . . 2 3 . 3 . 12 1 12 3 Fabnet Peak Effective % 3 | . . . . . . . . . . . . . . . . 3 3 3 3 1 1 1 1 . . . . . . . . Autooverrided 2 | . . . . . . . . . . . . . . . . 1 . . . 1 . . . . . . . . . . . Robots Rewired 16 | . . . . . . . . . . . . . 13 . . . . . . . . . . . . . . . . 3 . Allies Hacked 3 | . . . . . . . . . . . . . . 1 . . . . . 2 . . . . . . . . . . . Hacks Repelled . | . . . . . . . . . . . . . . . . . . . . . . . . . . . . . . . . Allies | -11 -10 -10 -9 -9 -9 -8 -8 -8 -8 -7 -7 -7 -7 -6 -6 -5 -5 -5 -5 -4 -4 -4 -4 -3 -3 -3 -2 -2 -2 -2 -1 -------- Run | Scr Mat Min Mat Min Exi Min Mat Gar Mat Fac Gar Fac Gar Fac Gar Fac Was Fac Gar Fac Was Fac Gar Res Qua Gar Res Gar Res Gar Acc Total Allies 171 | . . . . 3 . . . . 1 2 12 6 25 7 3 1 19 . 8 11 1 1 2 1 . . 1 20 4 16 27 Largest Group 19 | . . . . 2 2 . . . 1 2 4 5 12 13 2 1 19 14 11 12 1 1 . 1 . . 1 5 7 7 6 Highest-Rated Group 684 | . . . . 47 47 . . . 15 64 114 170 239 288 24 12 684 538 498 366 46 10 . 64 . . 58 375 486 486 281 Highest-Rated Ally 148 | . . . . 31 31 . . . 15 32 32 90 32 85 12 12 50 50 85 85 46 10 . 64 . . 58 132 148 148 69 Total Orders 6 | . . . . . . . . . . . . . . 2 . 1 . . . 3 . . . . . . . . . . . STAY 1 | . . . . . . . . . . . . . . 1 . . . . . . . . . . . . . . . . . FOLLOW 1 | . . . . . . . . . . . . . . 1 . . . . . . . . . . . . . . . . . AID 1 | . . . . . . . . . . . . . . . . . . . . 1 . . . . . . . . . . . EXPLORE 3 | . . . . . . . . . . . . . . . . 1 . . . 2 . . . . . . . . . . . Ally Attacks 999 | . . . . . . . . . 1 13 48 83 55 123 10 6 114 34 64 86 6 . 2 1 . . 15 62 46 82 148 Total Damage 32305 | . . . . . . . . . . 375 1070 1783 835 3394 67 62 4609 1133 2195 2335 165 . 12 60 . . 493 2050 1755 3791 6121 Kills 175 | . . . . . . . . . . 2 9 13 7 29 1 1 10 11 14 18 . . . . . . 4 6 8 13 29 Allies Corrupted 9 | . . . . . . . . . . . . . . . . . . . . 1 . . . . . . . 5 . 2 1 Allies Melted 4 | . . . . . . . . . . . . . . 1 . . . . . . . . . . . . . 1 . 2 . Intel | -11 -10 -10 -9 -9 -9 -8 -8 -8 -8 -7 -7 -7 -7 -6 -6 -5 -5 -5 -5 -4 -4 -4 -4 -3 -3 -3 -2 -2 -2 -2 -1 ------- Run | Scr Mat Min Mat Min Exi Min Mat Gar Mat Fac Gar Fac Gar Fac Gar Fac Was Fac Gar Fac Was Fac Gar Res Qua Gar Res Gar Res Gar Acc Robot Analysis Total 1 | . . . . . . . . . . . . . . . . 1 . . . . . . . . . . . . . . . Derelict Logs Recovered 1 | . . . . 1 . . . . . . . . . . . . . . . . . . . . . . . . . . . Drone Launches 4 | . . . . . . . . . . . . . . . . 2 . . . 2 . . . . . . . . . . . Drone Recoveries . | . . . . . . . . . . . . . . . . . . . . . . . . . . . . . . . . Exploration | -11 -10 -10 -9 -9 -9 -8 -8 -8 -8 -7 -7 -7 -7 -6 -6 -5 -5 -5 -5 -4 -4 -4 -4 -3 -3 -3 -2 -2 -2 -2 -1 ------------- Run | Scr Mat Min Mat Min Exi Min Mat Gar Mat Fac Gar Fac Gar Fac Gar Fac Was Fac Gar Fac Was Fac Gar Res Qua Gar Res Gar Res Gar Acc Turns Passed 25090 | 58 991 242 572 724 1070 657 920 1097 983 1027 1735 1572 1585 1399 299 393 544 216 662 1320 200 196 255 481 308 162 582 1557 318 1460 1505 Spaces Moved 18232 | 57 689 181 313 549 851 460 434 598 461 640 880 804 845 844 369 691 388 276 712 1580 258 228 273 358 288 221 573 1092 251 1036 1032 Core 818 | 2 . . . . . . . . . . . . . 147 336 171 . . . . . . . 4 1 . 10 . . . 147 Treads 238 | 1 1 . . . . 1 101 . 104 23 . . . . . . . . . . . . . . . . . . . 4 3 Legs 3546 | . . . . . . . . . . . . . . . . . . . . . . . . . . . 296 1092 251 1032 875 Wheels 8377 | 54 688 181 313 549 851 459 333 598 357 617 880 804 845 697 33 118 . . . . . . . . . . . . . . . Hover 4249 | . . . . . . . . . . . . . . . . . 359 276 712 1580 258 228 273 339 224 . . . . . . Flight 1004 | . . . . . . . . . . . . . . . . 402 29 . . . . . . 15 63 221 267 . . . 7 Fastest Speed 32 | 50 80 125 110 125 125 125 115 145 145 120 140 135 135 50 50 32 32 51 48 48 65 58 58 63 45 45 40 111 110 110 40 Average Speed 108 | 80 113 125 121 125 125 130 134 145 166 142 165 162 146 126 54 46 104 58 54 60 65 59 70 103 59 45 86 113 110 115 106 Slowest Speed 550 | 160 240 125 125 125 125 240 152 145 240 240 205 230 215 165 100 110 110 110 56 128 65 65 128 450 550 125 300 120 113 170 160 Overloaded Moves . | . . . . . . . . . . . . . . . . . . . . . . . . . . . . . . . . Propulsion Burnouts . | . . . . . . . . . . . . . . . . . . . . . . . . . . . . . . . . Robots Hopped 11 | . . . . . . . . . . . . . . . . 5 . . . . . . . . 3 1 2 . . . . Cave-ins Triggered . | . . . . . . . . . . . . . . . . . . . . . . . . . . . . . . . . Teleports 1 | . . . . . . . . . . . . . . . . . . . . . . . . . . 1 . . . . . Exploration Rate (%) 52 | 4 97 57 40 99 93 77 38 63 41 22 92 28 99 32 57 21 95 10 98 34 98 7 53 9 27 50 8 100 9 97 35 Regions Visited 31 Branch Regions 5 Pre-discovered Areas 1 | . . . . . 1 . . . . . . . . . . . . . . . . . . . . . . . . . . Known Exits Taken 12 | . 1 . 1 . . . 1 . 1 1 . 1 . 1 . . . 1 . . . 1 . . 1 . 1 . 1 . . Unknown Exits Taken 6 | 1 . 1 . 1 1 1 . . . . . . . . . . . . . . . . . 1 . . . . . . . Scrap Searched 5 | . . 1 . 1 . 3 . . . . . . . . . . . . . . . . . . . . . . . . . Spaces Dug 73 | . . . . . . . . . . 4 . 12 7 2 . . . . . 9 2 3 . . . 20 4 . . 3 7 Terrain Destroyed 648 | . . . . 21 . 7 62 77 26 26 8 74 123 45 . 1 . . 2 33 9 5 1 3 . 67 4 4 . 5 45 Melee 10 | . . . . . . . . . . 4 . . . 2 . . . . . . . . . . . . 4 . . . . Projectile 100 | . . . . . . 7 2 . . . . 15 1 . . 1 . . 2 26 9 5 1 3 . . . 4 . 5 19 AOE 538 | . . . . 21 . . 60 77 26 22 8 59 122 43 . . . . . 7 . . . . . 67 . . . . 26 Terrain Rammed . | . . . . . . . . . . . . . . . . . . . . . . . . . . . . . . . . Walls Destroyed . | . . . . . . . . . . . . . . . . . . . . . . . . . . . . . . . . Machines Disabled . | . . . . . . . . . . . . . . . . . . . . . . . . . . . . . . . . Actions | -11 -10 -10 -9 -9 -9 -8 -8 -8 -8 -7 -7 -7 -7 -6 -6 -5 -5 -5 -5 -4 -4 -4 -4 -3 -3 -3 -2 -2 -2 -2 -1 --------- Run | Scr Mat Min Mat Min Exi Min Mat Gar Mat Fac Gar Fac Gar Fac Gar Fac Was Fac Gar Fac Was Fac Gar Res Qua Gar Res Gar Res Gar Acc Total 22119 | 66 843 187 418 574 859 518 637 756 600 730 1108 975 1105 1043 438 751 505 335 956 1858 283 272 315 442 406 277 638 1383 286 1238 1317 Wait 1333 | . 70 . 19 10 . 50 89 35 36 14 53 28 77 16 15 9 85 33 144 132 11 6 6 20 75 7 15 167 8 62 41 Move 18186 | 56 688 180 312 548 850 459 433 597 460 639 879 803 844 844 368 681 387 276 711 1580 257 228 272 357 283 218 568 1091 250 1035 1032 Hop 10 | . . . . . . . . . . . . . . . . 5 . . . . . . . . 2 1 2 . . . . Pick Up 280 | 5 22 1 9 3 2 . 12 14 15 18 21 18 18 21 1 1 3 5 14 9 3 3 6 8 6 . 11 13 . 11 7 Fast Attach 191 | 5 4 . 8 . 1 3 9 1 2 2 6 2 5 2 7 9 . 5 5 8 1 7 1 7 2 3 11 22 3 24 26 Attach 195 | . 3 . 7 . 1 1 9 7 5 6 14 11 15 24 12 6 1 4 3 8 . 2 7 9 5 4 7 4 1 6 13 Detach 49 | . . . 1 . 1 1 . . . 1 . 2 4 2 12 5 . 2 . 3 . 1 1 . 4 3 1 1 1 . 3 Swap 199 | . 1 . 7 2 . . 4 14 11 9 18 19 26 21 . . . . 8 18 1 4 4 4 . . . 5 1 9 13 Drop 249 | . 14 1 10 3 4 3 7 9 15 12 15 12 12 11 2 4 . 8 13 8 2 6 3 5 2 . 5 25 2 22 14 Fire 1140 | . 41 5 45 8 . . 74 47 54 16 26 58 75 100 20 14 29 2 38 92 8 15 15 22 18 4 9 49 20 69 167 Melee 80 | . . . . . . . . . 2 4 22 20 15 2 . . . . . . . . . 2 . . 7 6 . . . Ram 22 | . . . . . . . . . . . . . . . 1 1 . . . . . . . 8 9 . 2 . . . 1 Kick . | . . . . . . . . . . . . . . . . . . . . . . . . . . . . . . . . Crush 1 | . . . . . . 1 . . . . . . . . . . . . . . . . . . . . . . . . . Escape Stasis 169 | . . . . . . . . 32 . 8 48 . 8 . . 16 . . 20 . . . . . . 37 . . . . . Rewire 11 | . . . . . . . . . . 1 2 2 6 . . . . . . . . . . . . . . . . . . Trap 4 | . . . . . . . . . . . 4 . . . . . . . . . . . . . . . . . . . . Miscellaneous . | . . . . . . . . . . . . . . . . . . . . . . . . . . . . . . . . Route ------- -11/Scrapyard -10/Materials (discovered 5 exits: *Mat x3 / *Min x2) -10/Mines -9/Materials (discovered 3 exits: *Min / *Sto x2) -9/Mines (discovered 3 exits: *Mat x2 / *Exi) -9/Exiles -8/Mines -8/Materials (discovered 2 exits: *Fac / Gar) -8/Garrison (discovered 2 exits: *Mat x2) -8/Materials (discovered 3 exits: *Fac x3) -7/Factory -7/Garrison (discovered 3 exits: *Fac x3) -7/Factory (discovered 3 exits: Low x2 / Gar) -7/Garrison (discovered 3 exits: *Fac x3) -6/Factory (discovered 2 exits: *Low / Gar) -6/Garrison -5/Factory (discovered 2 exits: Fac / Gar) -5/Waste -5/Factory -5/Garrison (discovered 3 exits: *Fac x3) -4/Factory (discovered 3 exits: *Res / [*Upp] / [*Arm]) -4/Waste -4/Factory -4/Garrison -3/Research (discovered 2 exits: Res / *Qua) -3/Quarantine -3/Garrison -2/Research -2/Garrison (discovered 3 exits: *Res x3) -2/Research -2/Garrison (discovered 3 exits: *Acc x3) -1/Access History --------- Turn | Location | Event 5 | -11/Scrapyard | Discovered new exit (range 16) 59 | -11/Scrapyard | Entered Materials 150 | -10/Materials | Discovered new exit (range 14) 239 | -10/Materials | Discovered new exit (range 14) 300 | -10/Materials | Build established: Mutant 409 | -10/Materials | Discovered new exit (range 10) 595 | -10/Materials | Identified exit to Mines 816 | -10/Materials | Discovered new exit (range 15) 1050 | -10/Materials | Entered Mines 1130 | -10/Mines | Found a damaged Exp. Sensor Array with a note attached 1134 | -10/Mines | Found Prototype Device 1279 | -10/Mines | Discovered new exit (range 8) 1292 | -10/Mines | Entered Materials 1292 | -9/Materials | Evolved 2 slots: Utility x2 1294 | -9/Materials | Identified Exp. Sensor Array 1636 | -9/Materials | Identified exit to Mines 1636 | -9/Materials | Identified exit to Storage 1864 | -9/Materials | Entered Mines 1901 | -9/Mines | Met a Derelict bent on vengeance 2007 | -9/Mines | Learned Materials machine intel 2010 | -9/Mines | Discovered new exit (range 6) 2152 | -9/Mines | Received a Mining Laser from a helpful Derelict 2367 | -9/Mines | A weapon hastily lodged in a ceiling crevice suddenly fell to the ground 2384 | -9/Mines | Discovered new exit (range 5) 2574 | -9/Mines | Deemed a non-threat by the Exiles lab entrance 2576 | -9/Mines | Discovered new exit (range 5) 2588 | -9/Mines | Entered Exiles 2588 | -9/Exiles | Accompanied by 2 allies 2618 | -9/Exiles | Led the pair of lost Derelicts to a safe place 2618 | -9/Exiles | Met 8R-AWN 2640 | -9/Exiles | Met EX-HEX 2697 | -9/Exiles | Met EX-DEC 2749 | -9/Exiles | Visited The Gauntlet 3033 | -9/Exiles | Met EX-BIN 3058 | -9/Exiles | Aligned with FarCom system 3060 | -9/Exiles | Given EX-Vault access code 3093 | -9/Exiles | Opened EX-Vault 3141 | -9/Exiles | Warned to stay clear of 0b10 Research branches 3190 | -9/Exiles | Learned location of Zion (-7) 3250 | -9/Exiles | Discovered new exit (range 12) 3506 | -9/Exiles | Found Modified TNC 3518 | -9/Exiles | Found AWS/Thermal 3658 | -9/Exiles | Stole two prototypes: AWS/Thermal, Modified TNC 3658 | -9/Exiles | Entered Mines 4103 | -8/Mines | Core integrity fell below 50% 4307 | -8/Mines | Discovered new exit (range 7) 4315 | -8/Mines | Entered Materials 4315 | -8/Materials | Evolved 2 slots: Utility x2 4316 | -8/Materials | Loaded intel: 53 machine locations 4767 | -8/Materials | Lost 3 parts (1n1u1w) 5089 | -8/Materials | Destroyed 12 combat bots 5098 | -8/Materials | Lost 4 parts (2p1n1w) 5158 | -8/Materials | Garrison activated, responded to threat 5204 | -8/Materials | Discovered new exit (range 15) 5230 | -8/Materials | Identified exit to Garrison 5235 | -8/Materials | Entered Garrison 5243 | -8/Garrison | Installed Relay Interface Framework 5305 | -8/Garrison | Triggered checkpoint 5342 | -8/Garrison | Garrison Relay disabled 5487 | -8/Garrison | Build established: Scavenger-Mutant 5512 | -8/Garrison | Core integrity fell below 50% 5548 | -8/Garrison | Triggered checkpoint 5666 | -8/Garrison | Triggered checkpoint 5763 | -8/Garrison | Lost 4 parts (1p3u) 5791 | -8/Garrison | Garrison Relay disabled 5842 | -8/Garrison | Discovered new exit (range 15) 5885 | -8/Garrison | Triggered checkpoint 5931 | -8/Garrison | Garrison Relay disabled 6022 | -8/Garrison | Triggered checkpoint 6090 | -8/Garrison | Discovered new exit (range 8) 6142 | -8/Garrison | Triggered checkpoint 6171 | -8/Garrison | Garrison Relay disabled 6221 | -8/Garrison | Build established: Mutant 6332 | -8/Garrison | Entered Materials 6846 | -8/Materials | Identified exit to Factory 6935 | -8/Materials | Build established: Bothacker-Mutant 7020 | -8/Materials | Lost 3 parts (1n1u1w) 7089 | -8/Materials | Repaired Broken Exp. Sensor Array? 7315 | -8/Materials | Entered Factory 7315 | -7/Factory | Accompanied by 1 ally 7315 | -7/Factory | Evolved 2 slots: Utility x2 7317 | -7/Factory | FarCom data flow suspended 8186 | -7/Factory | Identified exit to Garrison 8342 | -7/Factory | Entered Garrison 8342 | -7/Garrison | Accompanied by 2 allies 8406 | -7/Garrison | Triggered checkpoint 8468 | -7/Garrison | Garrison Relay disabled 8582 | -7/Garrison | Triggered checkpoint 8600 | -7/Garrison | Triggered checkpoint 8612 | -7/Garrison | Triggered checkpoint 8681 | -7/Garrison | Discovered new exit (range 10) 8712 | -7/Garrison | Triggered checkpoint 8745 | -7/Garrison | Garrison Relay disabled 8914 | -7/Garrison | Triggered checkpoint 8947 | -7/Garrison | Garrison Relay disabled 8961 | -7/Garrison | Lost 4 parts (1p2u1w) 9003 | -7/Garrison | Discovered new exit (range 8) 9305 | -7/Garrison | Discovered new exit (range 10) 9320 | -7/Garrison | Identified exit to Factory 9330 | -7/Garrison | Expanded RIF knowledge: Structural Interface 9376 | -7/Garrison | Garrison Relay disabled 9944 | -7/Garrison | Triggered checkpoint 10077 | -7/Garrison | Entered Factory 10077 | -7/Factory | Accompanied by 3 allies 10503 | -7/Factory | Core integrity fell below 50% 10618 | -7/Factory | Identified exit to Lower Caves 10851 | -7/Factory | Garrison activated, responded to threat 11164 | -7/Factory | Garrison activated, responded to threat 11277 | -7/Factory | First assault squad dispatched 11641 | -7/Factory | Identified exit to Garrison 11649 | -7/Factory | Entered Garrison 11758 | -7/Garrison | Triggered checkpoint 11776 | -7/Garrison | Garrison Relay disabled 11853 | -7/Garrison | Triggered checkpoint 11858 | -7/Garrison | Triggered checkpoint 11896 | -7/Garrison | Triggered checkpoint 12000 | -7/Garrison | Triggered checkpoint 12039 | -7/Garrison | Garrison Relay disabled 12082 | -7/Garrison | Discovered new exit (range 14) 12166 | -7/Garrison | Phase Generator disabled 12381 | -7/Garrison | Destroyed 7 combat bots 12383 | -7/Garrison | Lost 4 parts (1n2u1w) 12383 | -7/Garrison | Discovered new exit (range 14) 12420 | -7/Garrison | Triggered checkpoint 12432 | -7/Garrison | Garrison Relay disabled 12656 | -7/Garrison | Triggered checkpoint 12662 | -7/Garrison | Garrison Relay disabled 12746 | -7/Garrison | System corruption reached 10% 12998 | -7/Garrison | Triggered checkpoint 13056 | -7/Garrison | Discovered new exit (range 9) 13066 | -7/Garrison | Identified exit to Factory 13075 | -7/Garrison | Expanded RIF knowledge: Command Fork 13120 | -7/Garrison | Triggered checkpoint 13139 | -7/Garrison | Garrison Relay disabled 13234 | -7/Garrison | Entered Factory 13234 | -6/Factory | Accompanied by 11 allies 13234 | -6/Factory | Evolved 2 slots: Utility x2 13634 | -6/Factory | Build established: Bothacker-Assassin 13703 | -6/Factory | Discovered new exit (range 10) 13723 | -6/Factory | Identified exit to Lower Caves 13745 | -6/Factory | Garrison activated, responded to threat 13796 | -6/Factory | Spotted B-75 Beast 13802 | -6/Factory | Assimilated Beast 5a with formatsys_high 13934 | -6/Factory | First assault squad dispatched 14006 | -6/Factory | Build established: Bothacker-Mutant 14462 | -6/Factory | Lost 3 parts (1u2w) 14543 | -6/Factory | Cargo convoy interrupted 14559 | -6/Factory | Core integrity fell below 50% 14588 | -6/Factory | Lost 8 parts (1p4u3w) 14612 | -6/Factory | System corruption reached 10% 14629 | -6/Factory | Core integrity fell below 20% 14633 | -6/Factory | Identified exit to Garrison 14633 | -6/Factory | Entered Garrison 14636 | -6/Garrison | Expanded RIF knowledge: Watcher Feeds 14654 | -6/Garrison | Triggered checkpoint 14659 | -6/Garrison | Lost 3 parts (2n1u) 14665 | -6/Garrison | Spotted B-75 Beast 14752 | -6/Garrison | Garrison Relay disabled 14845 | -6/Garrison | Triggered checkpoint 14862 | -6/Garrison | Triggered checkpoint 14888 | -6/Garrison | Triggered checkpoint 14919 | -6/Garrison | Discovered new exit (range 14) 14932 | -6/Garrison | Entered Factory 14932 | -5/Factory | Evolved 2 slots: Propulsion x2 15213 | -5/Factory | Identified exit to Garrison 15228 | -5/Factory | Discovered new exit (range 33) 15325 | -5/Factory | Sucked down chute 15325 | -5/Factory | Entered Waste 15332 | -5/Waste | Spotted C-40 Crusher 15393 | -5/Waste | Spotted C-40 Crusher 15402 | -5/Waste | Spotted C-40 Crusher 15410 | -5/Waste | Warlord forces began an assault 15421 | -5/Waste | Allies destroyed C-40 Crusher 15424 | -5/Waste | Allies destroyed C-40 Crusher 15429 | -5/Waste | Spotted C-40 Crusher 15439 | -5/Waste | Allies destroyed C-40 Crusher 15460 | -5/Waste | Spotted C-40 Crusher 15469 | -5/Waste | Allies destroyed C-40 Crusher 15472 | -5/Waste | Allies destroyed C-40 Crusher 15488 | -5/Waste | Discovered new exit (range 12) 15734 | -5/Waste | Build established: Mutant 15869 | -5/Waste | Entered Factory 15869 | -5/Factory | Accompanied by 14 allies 16085 | -5/Factory | Identified exit to Garrison 16085 | -5/Factory | Entered Garrison 16085 | -5/Garrison | Accompanied by 10 allies 16088 | -5/Garrison | Expanded RIF knowledge: Coupler Efficiency 16121 | -5/Garrison | Garrison Relay disabled 16143 | -5/Garrison | Spotted B-75 Beast 16146 | -5/Garrison | Assimilated Beast 6a with formatsys_high 16162 | -5/Garrison | Triggered checkpoint 16214 | -5/Garrison | Triggered checkpoint 16218 | -5/Garrison | Triggered checkpoint 16227 | -5/Garrison | Triggered checkpoint 16332 | -5/Garrison | Discovered new exit (range 12) 16356 | -5/Garrison | Triggered checkpoint 16365 | -5/Garrison | Garrison Relay disabled 16466 | -5/Garrison | Garrison Relay disabled 16480 | -5/Garrison | Triggered checkpoint 16516 | -5/Garrison | Discovered new exit (range 12) 16615 | -5/Garrison | Discovered new exit (range 10) 16622 | -5/Garrison | Triggered checkpoint 16627 | -5/Garrison | Garrison Relay disabled 16659 | -5/Garrison | Build established: Botlord-Mutant 16747 | -5/Garrison | Entered Factory 16747 | -4/Factory | Accompanied by 6 allies 16747 | -4/Factory | Evolved 2 slots: Utility x2 16944 | -4/Factory | Discovered new exit (range 29) 17069 | -4/Factory | Discovered new exit (range 13) 17189 | -4/Factory | Fabricated Cmb. Antigrav System (x2) 17248 | -4/Factory | Discovered new exit (range 12) 17497 | -4/Factory | First assault squad dispatched 17975 | -4/Factory | Cargo convoy interrupted 18067 | -4/Factory | Manually triggered Chute Trap 18067 | -4/Factory | Sucked down chute 18067 | -4/Factory | Entered Waste 18068 | -4/Waste | Met a frightened Derelict 18070 | -4/Waste | Found Prototype Device 18070 | -4/Waste | Identified Exp. Force Field 18082 | -4/Waste | EMP discharged 18082 | -4/Waste | System corruption reached 10% 18123 | -4/Waste | Spotted C-40 Crusher 18124 | -4/Waste | Spotted C-40 Crusher 18124 | -4/Waste | Spotted C-40 Crusher 18130 | -4/Waste | Spotted C-40 Crusher 18134 | -4/Waste | Spotted C-40 Crusher 18182 | -4/Waste | EMP discharged 18223 | -4/Waste | Spotted C-40 Crusher 18259 | -4/Waste | Discovered new exit (range 10) 18267 | -4/Waste | Entered Factory 18463 | -4/Factory | Identified exit to Garrison 18463 | -4/Factory | Entered Garrison 18493 | -4/Garrison | Spotted B-86 Titan 18520 | -4/Garrison | Triggered checkpoint 18566 | -4/Garrison | Garrison Relay disabled 18661 | -4/Garrison | Triggered checkpoint 18667 | -4/Garrison | Triggered checkpoint 18680 | -4/Garrison | Core integrity fell below 50% 18693 | -4/Garrison | Spotted B-86 Titan 18711 | -4/Garrison | Discovered new exit (range 5) 18718 | -4/Garrison | Entered Research 18718 | -3/Research | Evolved 2 slots: Utility x2 18730 | -3/Research | Lost 10 parts (2p3n3u2w) 18745 | -3/Research | Discovered new exit (range 13) 19056 | -3/Research | Discovered new exit (range 87) 19113 | -3/Research | System corruption reached 10% 19174 | -3/Research | System corruption reached 30% 19189 | -3/Research | Core integrity fell below 50% 19199 | -3/Research | Entered Quarantine 19217 | -3/Quarantine | Found Alien Artifact 19228 | -3/Quarantine | Lost 15 parts (1p2n10u2w) 19344 | -3/Quarantine | Found Unknown Launcher 19449 | -3/Quarantine | Build established: Bothacker-Mutant 19449 | -3/Quarantine | Search patrols dispatched 19455 | -3/Quarantine | Identified Transdimensional Reconstructor 19507 | -3/Quarantine | Identified exit to Garrison 19507 | -3/Quarantine | Entered Garrison 19510 | -3/Garrison | Expanded RIF knowledge: Program Shield 19530 | -3/Garrison | Identified Fusion Bomb Launcher 19532 | -3/Garrison | Triggered checkpoint 19535 | -3/Garrison | Lost 5 parts (5u) 19544 | -3/Garrison | Phase Generator disabled 19558 | -3/Garrison | Garrison Relay disabled 19584 | -3/Garrison | Core integrity fell below 20% 19584 | -3/Garrison | Warped through subspace 19630 | -3/Garrison | Discovered new exit (range 19) 19669 | -3/Garrison | Entered Research 19669 | -2/Research | Evolved 2 slots: Propulsion x2 19800 | -2/Research | Lost 4 parts (1n3u) 19800 | -2/Research | Spotted B-90 Cyclops 20124 | -2/Research | Build established: Scavenger-Mutant 20250 | -2/Research | Identified exit to Garrison 20251 | -2/Research | Entered Garrison 20251 | -2/Garrison | Accompanied by 1 ally 20294 | -2/Garrison | Triggered checkpoint 20317 | -2/Garrison | System corruption reached 10% 20403 | -2/Garrison | Garrison Relay disabled 20484 | -2/Garrison | Spotted B-90 Cyclops 20514 | -2/Garrison | Triggered checkpoint 20524 | -2/Garrison | Triggered checkpoint 20526 | -2/Garrison | Triggered checkpoint 20572 | -2/Garrison | Garrison Relay disabled 20592 | -2/Garrison | Triggered checkpoint 20626 | -2/Garrison | Discovered new exit (range 15) 20693 | -2/Garrison | Build established: Botlord-Mutant 20708 | -2/Garrison | Triggered checkpoint 20735 | -2/Garrison | Garrison Relay disabled 20796 | -2/Garrison | Assimilated Cyclops 9a with formatsys_high 20851 | -2/Garrison | Triggered checkpoint 20916 | -2/Garrison | Garrison Relay disabled 20940 | -2/Garrison | Discovered new exit (range 8) 20988 | -2/Garrison | Triggered checkpoint 21105 | -2/Garrison | Discovered new exit (range 19) 21135 | -2/Garrison | Expanded RIF knowledge: Coupler Efficiency 21808 | -2/Garrison | Entered Research 21808 | -2/Research | Accompanied by 4 allies 21864 | -2/Research | Garrison activated, responded to threat 21920 | -2/Research | Spotted B-90 Cyclops 21921 | -2/Research | Assimilated Cyclops 9b with formatsys_high 22085 | -2/Research | First assault squad dispatched 22125 | -2/Research | Identified exit to Garrison 22126 | -2/Research | Entered Garrison 22126 | -2/Garrison | Accompanied by 7 allies 22201 | -2/Garrison | Garrison Relay disabled 22252 | -2/Garrison | Spotted B-90 Cyclops 22306 | -2/Garrison | Triggered checkpoint 22307 | -2/Garrison | Triggered checkpoint 22307 | -2/Garrison | Triggered checkpoint 22308 | -2/Garrison | Triggered checkpoint 22326 | -2/Garrison | System corruption reached 30% 22374 | -2/Garrison | Lost 6 parts (5u1w) 22447 | -2/Garrison | Lost 3 parts (2u1w) 22455 | -2/Garrison | Discovered new exit (range 17) 22461 | -2/Garrison | Spotted B-90 Cyclops 22522 | -2/Garrison | Destroyed B-90 Cyclops 22687 | -2/Garrison | Discovered new exit (range 11) 22705 | -2/Garrison | Expanded RIF knowledge: Hotswap 22840 | -2/Garrison | Garrison Relay disabled 23006 | -2/Garrison | Triggered checkpoint 23020 | -2/Garrison | Garrison Relay disabled 23049 | -2/Garrison | Discovered new exit (range 19) 23154 | -2/Garrison | Destroyed B-90 Cyclops 23192 | -2/Garrison | Triggered checkpoint 23213 | -2/Garrison | Garrison Relay disabled 23586 | -2/Garrison | Entered Access 23586 | -1/Access | Accompanied by 1 ally 23586 | -1/Access | Evolved 2 slots: Utility x2 23954 | -1/Access | Found Unknown Protection 23954 | -1/Access | Identified Hvy. Reflective Plating 24336 | -1/Access | First assault squad dispatched 24432 | -1/Access | Spotted B-99 Colossus 24708 | -1/Access | Destroyed 7 combat bots 24730 | -1/Access | Lost 6 parts (1p4u1w) 24912 | -1/Access | System corruption reached 10% 25017 | -1/Access | Spotted B-99 Colossus 25030 | -1/Access | Lost 14 parts (2p6n4u2w) 25037 | -1/Access | Core integrity fell below 50% 25087 | -1/Access | Core integrity fell below 20% 25091 | -1/Access | Destroyed by G-73 Enforcer with Heavy Laser Last Messages --------------- 25071_ Knocked back. 25074_ Adv. Heavy Siege Treads destroyed. 25074_ Structural Scanner destroyed. 25079_ Relay Coupler [Sentry] destroyed. 25080_ Relay Coupler [Demolisher] severed. 25083_ Xenon Bombardment Thruster destroyed. 25083_ Triggered Gamma Bomb Trap. 25083_ A bubble of electromagnetic force engulfs the area. 25083_ Sealed Freight Elevator disabled. 25083_ Door malfunctions. 25086_ ALERT: Significant disruption in Zone 1Y, multiple assault carriers dispatched. 25086_ Acquired Corrupted Enh. Nova Cannon. 25086_ Relay Coupler [Duelist] severed. 25087_ P-80 Master resets C-57 Dissector, system corruption cleaned. 25087_ Slug penetrates Wall. 25089_ Xenon Bombardment Thruster severed. 25090_ Slammed into P-80 Master. 25090_ Destabilizing: Core damaged (-48). 25091_ Penetrated by Slug. Map ----- +----------------------------------------------------+ | | | | | | | | | | | ???###### #######################????????????? | | ???#### ##????????????? | | ??### ##????????????? | | ##### ##????????????? | | #### ##????????????? | | ##????????????? | | #### [ + ????????????? | | #### # ????????????? | | ??## #######+########## #????????? | | ??### ###### +????????? | | ??### ###??# ######## ##???????????? | | ???## ###### ########+#####????????? | | ???## + h # #????????? | | ???## ######g # #????????? | | ???## ##???# # """"" #????????? | | ???########/########### h # """ #????????? | | ???###### ########## # """ #????????? | | ######### # ?? # g # "" = #????????? | | ######### # ?? # p# "" #????????? | | # ? ""# /c ! #????????? | | ### ##### # ? ""# @p#= #????????? | | ### ##### # ""# # #????????? | | ###+##### # G# # #????????? | | # # ""# # ##???????? | | # # ""# ###############???????? | | # " ""# # ?? ##???????? | | + # # # ? ##???????? | | # # # # ? ##???????? | | "F "" # # # # ##???????? | | """"" # ########## # " ???????????? | | """"" # # """"????????????? | | ######### # """""????????????? | | ######### + """"????????????? | | ???????## k# """"????????????? | | ???????################ # ????????????????????? | | ???????### # # ????????????????????? | | ????????## # # ????????????????????? | | ??????????? """"" # #####?????????????????? | | ??????????? """"" +% B"####?????????????????? | | ??????????? """"" # B ##?????????????????? | | ???????????? """"" # ##?????????????????? | | ????????????? """"" # ^ ##?????????????????? | | ????????????? """"" # * * ##### ?????????????? | | ????????????? ? # *| ##### ?????????????? | | ???????????? ? # |* # ?????????????? | +----------------------------------------------------+ Best States ------------- Heat Dissipation 80 Coolant Potential 100 Energy Generation 25 Energy Capacity 390 Matter Stores 407 Matter Capacity 550 Sight Range 22 Robot Scan Range 20 Terrain Scan Density 10 Jamming Range 16 Additional Mass Support 9 Armor Coverage 825 Resistance: TH 25 Resistance: EM 20 Core Shielding 30 Propulsion Shielding 90 Evasion (%) 63 Targeting Accuracy 16 Recoil Reduction 2 Kinecelleration 40 Offensive Hacking 20 Defensive Hacking 10 Relay Coupler Types 8 Relay Coupler Value 343 Authchip Count 1 Item Schematics ----------------- Datajack | -10/Materials | Hacked Exp. Sensor Array | -8/Materials | Scanalyzed Remote Datajack | -6/Factory | Scanalyzed Cmb. Antigrav System | -5/Factory | Hacked Robot Schematics ------------------ None Fabricated ------------ Cmb. Antigrav System | x2 | -4/Factory Alien Tech Used ----------------- Transdimensional Reconstructor Achievements -------------- Z1$+NX3F=JRE3_ZNQR Challenges ------------ None Game ------ Seed RestorationDecoderBoomstick Manual? 0 Play Time 07:54:31 Cumulative 213.3 hours Start 2022.04.06 @ 14:03:21 End 2022.04.06 @ 23:31:47 Sessions 1 Manual Loads 0 Difficulty Rogue Special Mode None Game No. 57 Rogue 40 Adventurer 17 Explorer 0 Win Type - Total 11 Types 7/0/3/1/0/0/0/0/0 Lore% 71 Gallery% 71 Achievement% 66 Wizard Run 0 Options --------- ASCII 0 Keyboard 0 Movement Arrows Keybinds 0 Fullscreen 1 Font 28/Dina Map View 72x54 Tactical HUD 1 Map Filters NONE Filters NONE Steam 1 RUN: 5c8aa3f7-7fe8-417f-a09e-4532c618740f